bitfinex/quotes_BTCUSD_20250610
["timestamp","ask_amount","ask_price","bid_price","bid_amount"]
[1749517174918,29.68578073,109950.0,109940.0,2.51041437]
[1749517175095,29.73578073,109950.0,109940.0,2.51041437]
[1749517175293,29.73578073,109950.0,109940.0,2.37171437]
[1749517175500,29.73578073,109950.0,109940.0,1.55721437]
[1749517175882,29.73578073,109950.0,109940.0,1.48701437]
[1749517176087,29.68578073,109950.0,109940.0,1.48701437]
[1749517176287,29.73578073,109950.0,109940.0,1.48701437]
[1749517176506,29.73578073,109950.0,109940.0,1.29247352]
[1749517176843,29.73578073,109950.0,109940.0,2.27937352]
[1749517176987,29.73578073,109950.0,109940.0,2.27925352]
[1749517177413,29.73578073,109950.0,109940.0,2.88409366]
[1749517177613,29.68578073,109950.0,109940.0,2.88409366]
[1749517177832,29.73578073,109950.0,109940.0,2.88409366]
[1749517178091,29.73578073,109950.0,109940.0,2.87169366]
[1749517178333,29.73578073,109950.0,109940.0,1.34685004]
[1749517179423,29.68578073,109950.0,109940.0,1.34685471]
[1749517179552,29.73578073,109950.0,109940.0,1.34685471]
[1749517181366,29.73578073,109950.0,109940.0,1.29236862]
[1749517181569,30.02890073,109950.0,109940.0,0.50339562]
[1749517181772,30.02890073,109950.0,109940.0,1.34686391]
[1749517181981,29.97890073,109950.0,109940.0,1.05374391]
[1749517182176,30.02890073,109950.0,109940.0,1.05374391]
[1749517182597,30.02890073,109950.0,109940.0,0.50339562]
[1749517184841,30.02890073,109950.0,109940.0,0.96194605]
[1749517185068,30.02890073,109950.0,109940.0,0.99828041]
[1749517187151,30.02890073,109950.0,109940.0,0.22293212]
[1749517187350,30.02890073,109950.0,109940.0,0.16843683]
[1749517190485,30.02890073,109950.0,109940.0,0.19567654]
[1749517191451,29.73578073,109950.0,109940.0,0.19567654]
[1749517191650,30.02882073,109950.0,109940.0,0.19567654]
[1749517191855,30.02882073,109950.0,109940.0,0.15934218]
[1749517195932,29.73578073,109950.0,109940.0,0.15934218]
[1749517196134,30.02878073,109950.0,109940.0,0.15934218]
[1749517201403,30.02878073,109950.0,109940.0,0.13210247]
[1749517201605,30.5793016,109950.0,109940.0,0.13210247]
[1749517202046,30.02878073,109950.0,109940.0,0.13210247]
[1749517203475,30.02878073,109950.0,109940.0,0.11505129]
[1749517204403,30.02878073,109950.0,109940.0,0.13208213]
[1749517204742,30.02878073,109950.0,109940.0,0.14059755]
[1749517204743,30.12246073,109950.0,109940.0,0.14059755]
[1749517204946,30.12246073,109950.0,109940.0,0.14059754]
[1749517205106,30.12246073,109950.0,109940.0,0.14059753]
[1749517205304,30.12246073,109950.0,109940.0,0.13208212]
[1749517205530,30.12246073,109950.0,109940.0,0.14059753]
[1749517205761,30.12242073,109950.0,109940.0,0.14059753]
[1749517206134,30.1222843,109950.0,109940.0,0.14059744]
[1749517206336,29.7356443,109950.0,109940.0,0.14059744]
[1749517206538,30.1222843,109950.0,109940.0,0.70132716]
[1749517206735,30.1222843,109950.0,109940.0,0.70984237]
[1749517207014,30.1222843,109950.0,109940.0,0.71835762]
[1749517208097,30.1222843,109950.0,109940.0,0.71835844]
[1749517208286,30.1222843,109950.0,109940.0,0.71836003]
[1749517208493,30.1222843,109950.0,109940.0,0.15080705]
[1749517208722,30.1222843,109950.0,109940.0,0.15932309]
[1749517208874,30.1222843,109950.0,109940.0,0.16783913]
[1749517209079,30.1222843,109950.0,109940.0,0.16784008]
[1749517210129,30.1222843,109950.0,109940.0,0.16784195]
[1749517210287,30.1222843,109950.0,109940.0,0.15932497]
[1749517210488,30.1222843,109950.0,109940.0,0.15932501]
[1749517210690,30.1222843,109950.0,109940.0,0.150808]
[1749517210890,30.1222843,109950.0,109940.0,0.16784201]
[1749517211118,29.7356443,109950.0,109940.0,0.16784201]
[1749517211322,30.1222443,109950.0,109940.0,0.77969724]
[1749517211523,30.1222443,109950.0,109940.0,0.7796977]
[1749517211745,30.1222443,109950.0,109940.0,0.77118024]
[1749517212072,30.1222443,109950.0,109940.0,0.76266369]
[1749517212274,30.1222443,109950.0,109940.0,0.77118118]
[1749517212477,30.1222443,109950.0,109940.0,0.22917778]
[1749517212615,30.67276517,109950.0,109940.0,0.19284342]
[1749517213231,30.67276517,109950.0,109940.0,0.17580847]
[1749517213420,30.1222443,109950.0,109940.0,0.167291]
[1749517213624,30.1222443,109950.0,109940.0,0.17580874]
[1749517213852,30.1222443,109950.0,109940.0,0.167291]
[1749517214054,30.1222443,109950.0,109940.0,0.17580874]
[1749517214315,30.1222443,109950.0,109940.0,0.167291]
[1749517214447,30.1222443,109950.0,109940.0,0.17580874]
[1749517214631,29.7356443,109950.0,109940.0,0.72632961]
[1749517214832,30.1222043,109950.0,109940.0,0.76266397]
[1749517215246,30.1222043,109950.0,109940.0,0.73542461]
[1749517215452,30.1222043,109950.0,109940.0,0.735427]
[1749517215694,29.7356443,109950.0,109940.0,0.735427]
[1749517215897,30.0284843,109950.0,109940.0,0.735427]
[1749517216099,29.7356443,109950.0,109940.0,1.27742739]
[1749517216366,29.9784843,109950.0,109940.0,1.33192268]
[1749517216593,30.0284843,109950.0,109940.0,1.3041085]
[1749517216795,30.0284843,109950.0,109940.0,1.30410586]
[1749517217065,30.0284843,109950.0,109940.0,1.30410585]
[1749517217231,30.0284843,109950.0,109940.0,1.3959037]
[1749517217428,30.0284843,109950.0,109940.0,0.8451706]
[1749517217639,30.0284843,109950.0,109940.0,0.84517059]
[1749517217835,30.0284843,109950.0,109940.0,0.83665308]
[1749517218159,29.7038443,109950.0,109940.0,5.89517059]
[1749517218376,29.9966843,109950.0,109940.0,5.88665308]
[1749517218817,29.9466843,109950.0,109940.0,5.88665308]
[1749517219028,29.9966843,109950.0,109940.0,5.88665308]
[1749517219262,29.7038443,109950.0,109940.0,6.17945308]
[1749517219924,29.6538443,109950.0,109940.0,6.17945308]
[1749517220158,29.7038443,109950.0,109940.0,6.17945308]
[1749517221259,29.9966443,109950.0,109940.0,5.88665308]
[1749517222330,29.9649043,109950.0,109940.0,5.88665308]
[1749517222536,30.0323043,109950.0,109940.0,5.88665308]
[1749517222773,29.7038443,109950.0,109940.0,5.88665308]
[1749517224193,29.6538443,109950.0,109940.0,5.88665308]
[1749517224394,29.7038443,109950.0,109940.0,5.88665308]
[1749517225032,29.7215443,109950.0,109940.0,5.88665308]
[1749517225222,29.7391443,109950.0,109940.0,5.88665308]
[1749517225425,29.7391443,109950.0,109940.0,5.32275308]
[1749517226060,29.7391443,109950.0,109940.0,5.07555308]
[1749517226307,29.7038443,109950.0,109940.0,1.43874444]
[1749517226709,29.7038443,109950.0,109940.0,1.98905308]
[1749517226910,29.7401443,109950.0,109940.0,1.98905308]
[1749517230726,29.7401443,109950.0,109940.0,1.26625308]
[1749517231331,29.7401443,109950.0,109940.0,1.14385308]
[1749517231980,30.0328243,109950.0,109940.0,0.83665308]
[1749517232128,30.0328243,109950.0,109940.0,1.12933308]
[1749517232552,30.0328243,109950.0,109940.0,0.83665308]
[1749517232954,30.0328243,109950.0,109940.0,0.23084105]
[1749517233153,30.0328243,109950.0,109940.0,0.17634576]
[1749517233512,30.0328243,109950.0,109940.0,0.21208073]
[1749517233695,30.0328243,109950.0,109940.0,0.2035711]
[1749517233853,30.0328243,109950.0,109940.0,0.17634576]
[1749517234071,30.0328243,109950.0,109940.0,0.1848553]
[1749517234264,30.0328243,109950.0,109940.0,0.18485521]
[1749517234593,30.0328243,109950.0,109940.0,0.17634576]
[1749517234963,30.0328243,109950.0,109940.0,0.18485521]
[1749517235686,30.0328243,109950.0,109940.0,0.17634576]
[1749517236128,30.1263443,109950.0,109940.0,0.17634576]
[1749517236336,30.1263443,109950.0,109940.0,0.18485521]
[1749517236508,30.1263443,109950.0,109940.0,0.17634576]
[1749517237222,30.1263443,109950.0,109940.0,0.18485521]
[1749517237355,30.1263443,109950.0,109940.0,0.19336396]
[1749517237567,30.1263443,109950.0,109940.0,0.18485521]
[1749517238375,30.1263443,109950.0,109940.0,0.19336388]
[1749517238588,30.1263443,109950.0,109940.0,0.18485521]
[1749517239400,30.1263443,109950.0,109940.0,0.19336253]
[1749517239948,30.1263443,109950.0,109940.0,0.18485521]
[1749517240250,30.1263443,109950.0,109940.0,0.19336245]
[1749517241017,30.1263443,109950.0,109940.0,0.18485521]
[1749517241448,30.1263443,109950.0,109940.0,0.21209875]
[1749517241674,30.1263443,109950.0,109940.0,0.2206052]
[1749517242024,30.1263443,109950.0,109940.0,0.18431073]
[1749517242242,30.1263443,109950.0,109940.0,0.18431079]
[1749517242629,30.1263443,109950.0,109940.0,0.17580428]
[1749517242831,30.1263443,109950.0,109940.0,0.1843108]
[1749517243033,30.1263443,109950.0,109940.0,0.17580428]
[1749517243185,30.1263443,109950.0,109940.0,0.1843108]
[1749517243971,30.1263443,109950.0,109940.0,0.17580428]
[1749517244394,30.1263443,109950.0,109940.0,0.1843108]
[1749517244565,30.1263443,109950.0,109940.0,0.18431476]
[1749517244773,30.1263443,109950.0,109940.0,0.17580428]
[1749517245020,30.1263443,109950.0,109940.0,0.18231196]
[1749517245021,30.1257443,109950.0,109940.0,0.18231196]
[1749517245236,30.1257443,109950.0,109940.0,0.18231203]
[1749517245485,30.1257443,109950.0,109940.0,0.17380428]
[1749517245890,30.67605294,109950.0,109940.0,0.18231203]
[1749517246065,30.67605294,109950.0,109940.0,0.17380428]
[1749517246624,30.1257443,109950.0,109940.0,0.18231224]
[1749517247043,30.1257443,109950.0,109940.0,0.17380428]
[1749517247247,30.7678508,109950.0,109940.0,0.15730458]
[1749517247436,30.7678508,109950.0,109940.0,0.12156074]
[1749517247437,30.76822527,109950.0,109940.0,0.12156074]
[1749517247696,30.76822527,109950.0,109940.0,0.13006121]
[1749517247904,30.76822527,109950.0,109940.0,0.12156074]
[1749517248131,30.76822527,109950.0,109940.0,0.13006129]
[1749517248582,30.21754216,109950.0,109940.0,0.13006129]
[1749517248809,30.77748162,109950.0,109940.0,0.12156074]
[1749517249038,30.22679851,109950.0,109940.0,0.12156074]
[1749517249305,30.77748162,109950.0,109940.0,0.12156074]
[1749517249523,30.77738485,109950.0,109940.0,0.1300613]
[1749517250186,30.77738485,109950.0,109940.0,0.12156074]
[1749517250408,30.77738485,109950.0,109940.0,0.1300613]
[1749517251030,30.77738485,109950.0,109940.0,0.12156074]
[1749517251247,30.77738485,109950.0,109940.0,0.1300613]
[1749517251462,30.77738485,109950.0,109940.0,0.12156074]
[1749517251683,30.80469385,109950.0,109940.0,0.13008819]
[1749517252100,30.80469385,109950.0,109940.0,0.12156074]
[1749517252738,30.80469385,109950.0,109940.0,0.13008819]
[1749517252964,30.7954375,109950.0,109940.0,0.13008817]
[1749517253548,30.7954375,109950.0,109940.0,0.12156074]
[1749517253760,30.7954375,109950.0,109940.0,0.13008818]
[1749517254151,30.7954375,109950.0,109940.0,0.12156074]
[1749517254355,30.7954375,109950.0,109940.0,0.13008818]
[1749517255217,31.1354375,109950.0,109940.0,0.13008818]
[1749517255424,31.1447219,109950.0,109940.0,0.12156074]
[1749517255626,31.1447219,109950.0,109940.0,0.13008819]
[1749517255831,31.1447219,109950.0,109940.0,0.12156074]
[1749517256053,30.59413556,109950.0,109940.0,0.13008819]
[1749517256290,31.1447219,109950.0,109940.0,0.13008819]
[1749517256497,31.1447219,109950.0,109940.0,0.12156074]
[1749517256729,31.1447219,109950.0,109940.0,0.13008819]
[1749517256904,31.1447219,109950.0,109940.0,0.14714312]
[1749517257154,31.1447219,109950.0,109940.0,0.12156074]
[1749517257366,31.1447219,109950.0,109940.0,0.14714312]
[1749517257574,31.1447219,109950.0,109940.0,0.12156074]
[1749517257965,31.1447219,109950.0,109940.0,0.1300882]
[1749517258176,31.1447219,109950.0,109940.0,0.14714313]
[1749517258557,31.1447219,109950.0,109940.0,0.1300882]
[1749517258762,30.59413556,109950.0,109940.0,0.13008821]
[1749517258979,31.1447219,109950.0,109940.0,0.14714317]
[1749517259179,31.1447219,109950.0,109940.0,0.14714318]
[1749517259380,31.1447219,109950.0,109940.0,0.12156074]
[1749517259590,31.75094398,109950.0,109940.0,0.14714376]
[1749517259745,31.70094398,109950.0,109940.0,0.03861701]
[1749517259944,31.70094398,109950.0,109940.0,0.02156074]
[1749517260144,31.64530824,109950.0,109940.0,0.04714821]
[1749517260355,31.69506824,109950.0,109940.0,0.03861912]
[1749517260606,31.1444819,109950.0,109940.0,0.04714791]
[1749517261003,31.1445219,109950.0,109940.0,0.0386187]
[1749517261245,30.7585219,109950.0,109940.0,0.03008967]
[1749517261450,31.1445219,109950.0,109940.0,0.04714753]
[1749517261680,30.7585219,109950.0,109940.0,0.0386186]
[1749517261889,31.06545556,109950.0,109940.0,0.02156074]
[1749517262110,31.6160419,109950.0,109940.0,0.02156074]
[1749517262816,31.2300819,109950.0,109940.0,0.02156074]
[1749517263042,31.6160419,109950.0,109940.0,0.02156074]
[1749517263899,32.16662824,109950.0,109940.0,0.03861791]
[1749517264104,32.16662824,109950.0,109940.0,0.02156074]
[1749517264304,32.16662824,109950.0,109940.0,0.03861841]
[1749517264531,32.16662824,109950.0,109940.0,0.03861855]
[1749517264740,32.16662824,109950.0,109940.0,0.02156074]
[1749517265179,32.2584261,109950.0,109940.0,0.03861858]
[1749517265392,32.2584261,109950.0,109940.0,0.02156074]
[1749517267187,32.2084261,109950.0,109940.0,0.02156074]
[1749517267404,32.2584261,109950.0,109940.0,0.02156074]
[1749517267626,32.27296695,109950.0,109940.0,0.00426074]
[1749517267847,32.32296695,109950.0,109940.0,0.00426074]
[1749517269450,32.27296695,109950.0,109940.0,0.00426074]
[1749517269657,32.32296695,109950.0,109940.0,0.00426074]
[1749517271627,32.41870695,109950.0,109940.0,0.00426074]
[1749517271840,1.38492064,109930.0,109920.0,0.002]
[1749517272071,1.31181216,109930.0,109920.0,0.00214492]
[1749517272502,1.33913116,109930.0,109920.0,0.00214492]
[1749517273145,1.8897175,109930.0,109920.0,0.00214492]
[1749517274664,0.78854482,109930.0,109920.0,0.00214492]
[1749517274880,1.33913116,109930.0,109920.0,0.00214492]
[1749517275104,1.43092902,109930.0,109920.0,0.00214492]
[1749517275330,0.43059615,109930.0,109920.0,0.00214492]
[1749517275557,0.98118249,109930.0,109920.0,0.00214492]
[1749517275768,1.36686249,109930.0,109920.0,0.00214492]
[1749517278151,1.91744883,109930.0,109920.0,0.00214492]
[1749517278361,2.00924669,109930.0,109920.0,0.00214492]
[1749517279700,2.00924669,109930.0,109920.0,0.01920551]
[1749517279902,1.45866035,109930.0,109920.0,0.01920551]
[1749517280110,0.90807401,109930.0,109920.0,0.00214492]
[1749517280321,1.45866035,109930.0,109920.0,0.01920549]
[1749517280969,1.45866035,109930.0,109920.0,0.01920546]
[1749517281172,1.36686249,109930.0,109920.0,0.01920546]
[1749517281325,1.36686249,109930.0,109920.0,0.0192055]
[1749517281526,1.36686249,109930.0,109920.0,0.00214492]
[1749517281936,1.36686249,109930.0,109920.0,0.01920547]
[1749517282104,1.36686249,109930.0,109920.0,0.00214492]
[1749517282306,1.45266235,109930.0,109920.0,0.00214492]
[1749517282500,1.45266235,109930.0,109920.0,0.01920548]
[1749517282745,1.45266235,109930.0,109920.0,0.00214492]
[1749517282952,1.45266235,109930.0,109920.0,0.01920547]
[1749517283165,1.45266235,109930.0,109920.0,0.00214492]
[1749517283595,1.45266235,109930.0,109920.0,0.01920547]
[1749517283803,1.45266235,109930.0,109920.0,0.02773574]
[1749517284010,1.45266235,109930.0,109920.0,0.01067519]
[1749517284219,1.06698235,109930.0,109920.0,0.02773574]
[1749517284427,1.45262235,109930.0,109920.0,0.01920547]
[1749517284631,1.45262235,109930.0,109920.0,0.01067519]
[1749517284829,1.45262235,109930.0,109920.0,0.01920547]
[1749517285063,1.36682249,109930.0,109920.0,0.00214492]
[1749517285276,1.36682249,109930.0,109920.0,0.01920547]
[1749517285487,1.36682249,109930.0,109920.0,0.02773574]
[1749517285698,1.36682249,109930.0,109920.0,0.00214492]
[1749517285909,1.45862035,109930.0,109920.0,0.00214492]
[1749517286331,1.45862035,109930.0,109920.0,0.01920547]
[1749517286538,1.07298035,109930.0,109920.0,0.02773574]
[1749517286739,1.45858035,109930.0,109920.0,0.01920547]
[1749517287147,1.45858035,109930.0,109920.0,0.01920549]
[1749517287769,2.00916669,109930.0,109920.0,0.02773577]
[1749517287978,2.00916669,109930.0,109920.0,0.01067535]
[1749517288186,2.00916669,109930.0,109920.0,0.02773625]
[1749517288387,2.00916669,109930.0,109920.0,0.0277363]
[1749517288597,2.00916669,109930.0,109920.0,0.01920585]
[1749517289018,2.00916669,109930.0,109920.0,0.02773631]
[1749517289223,2.00916669,109930.0,109920.0,0.01920585]
[1749517289632,2.00916669,109930.0,109920.0,0.0277363]
[1749517289839,2.00916669,109930.0,109920.0,0.00214492]
[1749517290022,2.00916669,109930.0,109920.0,0.02773696]
[1749517290240,2.00916669,109930.0,109920.0,0.01067561]
[1749517290455,2.00916669,109930.0,109920.0,0.01067566]
[1749517290671,2.00916669,109930.0,109920.0,0.02773714]
[1749517290880,2.00916669,109930.0,109920.0,0.00214492]
[1749517291298,2.34916669,109930.0,109920.0,0.00214492]
[1749517291508,2.34916669,109930.0,109920.0,0.01920647]
[1749517291721,2.34916669,109930.0,109920.0,0.01067569]
[1749517291924,2.34916669,109930.0,109920.0,0.0106757]
[1749517292134,2.34916669,109930.0,109920.0,0.00214492]
[1749517292546,2.34916669,109930.0,109920.0,0.0277372]
[1749517292757,2.34916669,109930.0,109920.0,0.01067568]
[1749517292977,2.34916669,109930.0,109920.0,0.02773721]
[1749517293599,2.34916669,109930.0,109920.0,0.01067568]
[1749517294014,2.34916669,109930.0,109920.0,0.02773721]
[1749517294228,2.34916669,109930.0,109920.0,0.01067569]
[1749517294431,2.34916669,109930.0,109920.0,0.00214492]
[1749517294859,2.34916669,109930.0,109920.0,0.02773724]
[1749517295063,2.34916669,109930.0,109920.0,0.01067569]
[1749517295267,2.34916669,109930.0,109920.0,0.00214492]
[1749517295484,2.34916669,109930.0,109920.0,0.01920647]
[1749517295698,2.34916669,109930.0,109920.0,0.01920645]
[1749517296114,2.34916669,109930.0,109920.0,0.02773723]
[1749517296330,2.34916669,109930.0,109920.0,0.00214492]
[1749517296537,2.34916669,109930.0,109920.0,0.02773721]
[1749517296802,2.34916669,109930.0,109920.0,0.02773724]
[1749517296984,2.34916669,109930.0,109920.0,0.00214492]
[1749517297195,2.34916669,109930.0,109920.0,0.02773729]
[1749517297614,2.34916669,109930.0,109920.0,0.01067571]
[1749517297834,2.34916669,109930.0,109920.0,0.01067572]
[1749517298290,2.34916669,109930.0,109920.0,0.00214492]
[1749517298533,2.34916669,109930.0,109920.0,0.02773739]
[1749517298751,2.34916669,109930.0,109920.0,0.02773753]
[1749517298968,2.34916669,109930.0,109920.0,0.0277376]
[1749517299432,2.34916669,109930.0,109920.0,0.01920671]
[1749517299645,2.34916669,109930.0,109920.0,0.0277376]
[1749517299861,2.34916669,109930.0,109920.0,0.01067581]
[1749517300080,2.34916669,109930.0,109920.0,0.01920671]
[1749517300299,2.34916669,109930.0,109920.0,0.01067581]
[1749517300512,2.34916669,109930.0,109920.0,0.00214492]
[1749517300994,2.34916669,109930.0,109920.0,0.01920671]
[1749517301215,2.34916669,109930.0,109920.0,0.0277376]
[1749517301435,2.34916669,109930.0,109920.0,0.00214492]
[1749517301654,1.79858035,109930.0,109920.0,0.01920671]
[1749517301872,2.34916669,109930.0,109920.0,0.0277376]
[1749517302796,2.34916669,109930.0,109920.0,0.00214492]
[1749517303217,2.34916669,109930.0,109920.0,0.01067581]
[1749517303428,2.34916669,109930.0,109920.0,0.0277376]
[1749517303653,2.82088669,109930.0,109920.0,0.00214492]
[1749517303864,2.82088669,109930.0,109920.0,0.01067581]
[1749517304350,2.82088669,109930.0,109920.0,0.00214492]
[1749517304602,2.82088669,109930.0,109920.0,0.02773754]
[1749517304785,2.82088669,109930.0,109920.0,0.01920628]
[1749517305030,2.82088669,109930.0,109920.0,0.00214492]
[1749517305240,2.82088669,109930.0,109920.0,0.02773696]
[1749517305453,2.82088669,109930.0,109920.0,0.0106756]
[1749517306210,2.82088669,109930.0,109920.0,0.00214492]
[1749517306381,2.82088669,109930.0,109920.0,0.01920628]
[1749517306582,2.82088669,109930.0,109920.0,0.02773696]
[1749517306812,2.82088669,109930.0,109920.0,0.00214492]
[1749517307018,2.82088669,109930.0,109920.0,0.01920629]
[1749517307234,2.82088669,109930.0,109920.0,0.01920633]
[1749517307442,2.82088669,109930.0,109920.0,0.02773751]
[1749517307648,2.82088669,109930.0,109920.0,0.01920665]
[1749517307852,2.82088669,109930.0,109920.0,0.0277376]
[1749517308058,2.82088669,109930.0,109920.0,0.01067581]
[1749517308269,2.82088669,109930.0,109920.0,0.0277376]
[1749517308505,2.82088669,109930.0,109920.0,0.00214492]
[1749517308709,2.88542754,109930.0,109920.0,0.01067581]
[1749517308921,2.88542754,109930.0,109920.0,0.01067591]
[1749517309121,2.88542754,109930.0,109920.0,0.01067592]
[1749517309330,2.88542754,109930.0,109920.0,0.00214492]
[1749517309955,2.88542754,109930.0,109920.0,0.01067602]
[1749517310161,2.88542754,109930.0,109920.0,0.00214492]
[1749517310340,2.88542754,109930.0,109920.0,0.01067602]
[1749517310762,2.88542754,109930.0,109920.0,0.00214492]
[1749517311138,2.88642754,109930.0,109920.0,0.01367602]
[1749517311542,0.57546317,109910.0,109900.0,0.002]
[1749517311745,1.73367016,109910.0,109900.0,0.02764361]
[1749517311948,1.73367016,109910.0,109900.0,0.02764396]
[1749517312247,1.11186303,109910.0,109900.0,0.02764407]
[1749517312439,1.11186303,109910.0,109900.0,0.02764388]
[1749517312646,1.11186303,109910.0,109900.0,0.01058029]
[1749517312976,1.66244937,109910.0,109900.0,0.01057988]
[1749517313189,1.66244937,109910.0,109900.0,0.00204849]
[1749517313854,1.66244937,109910.0,109900.0,0.01911143]
[1749517314065,1.66244937,109910.0,109900.0,0.02764282]
[1749517314289,1.66244937,109910.0,109900.0,0.01357994]
[1749517314499,1.32344937,109910.0,109900.0,0.01357992]
[1749517314728,1.32344937,109910.0,109900.0,0.01057992]
[1749517314938,1.32444937,109910.0,109900.0,0.00504849]
[1749517315147,1.32444937,109910.0,109900.0,0.03064278]
[1749517315377,1.32444937,109910.0,109900.0,0.01144707]
[1749517315864,0.77386303,109910.0,109900.0,0.03704139]
[1749517316116,1.32444937,109910.0,109900.0,0.0285099]
[1749517316329,1.32444937,109910.0,109900.0,0.03917416]
[1749517316546,1.32444937,109910.0,109900.0,0.01357993]
[1749517316762,1.32444937,109910.0,109900.0,0.0285099]
[1749517316971,1.32444937,109910.0,109900.0,0.02211134]
[1749517317180,1.32444937,109910.0,109900.0,0.02637705]
[1749517317399,1.32444937,109910.0,109900.0,0.0285099]
[1749517317620,1.32444937,109910.0,109900.0,0.04557273]
[1749517317830,1.32444937,109910.0,109900.0,0.02637705]
[1749517318269,1.32444937,109910.0,109900.0,0.03490846]
[1749517318501,1.32444937,109910.0,109900.0,0.05197129]
[1749517318717,1.32444937,109910.0,109900.0,0.04343988]
[1749517318925,1.32444937,109910.0,109900.0,0.05195912]
[1749517319143,1.32444937,109910.0,109900.0,0.01997849]
[1749517319361,1.32444937,109910.0,109900.0,0.04340641]
[1749517319571,1.32444937,109910.0,109900.0,0.05192565]
[1749517319823,1.32444937,109910.0,109900.0,0.01997849]
[1749517320007,1.32444937,109910.0,109900.0,0.05192565]
[1749517320211,0.77386303,109910.0,109900.0,0.05192565]
[1749517320425,1.32444937,109910.0,109900.0,0.05192565]
[1749517320634,1.32444937,109910.0,109900.0,0.04340641]
[1749517320840,1.32444937,109910.0,109900.0,0.05192565]
[1749517321060,1.79620937,109910.0,109900.0,0.02636792]
[1749517321268,1.79620937,109910.0,109900.0,0.04340641]
[1749517321507,1.79620937,109910.0,109900.0,0.05192565]
[1749517321709,1.79620937,109910.0,109900.0,0.03701698]
[1749517321927,1.79620937,109910.0,109900.0,0.05192565]
[1749517322348,1.24562303,109910.0,109900.0,0.04553622]
[1749517322557,1.81430937,109910.0,109900.0,0.02849996]
[1749517322769,1.24562303,109910.0,109900.0,0.01997849]
[1749517322984,1.24562303,109910.0,109900.0,0.04341254]
[1749517323202,1.79620937,109910.0,109900.0,0.05193401]
[1749517323410,1.79671065,109910.0,109900.0,0.02849996]
[1749517323666,1.90660851,109910.0,109900.0,0.05193397]
[1749517323864,1.81481065,109910.0,109900.0,0.03702142]
[1749517324119,1.81481065,109910.0,109900.0,0.05193397]
[1749517324341,1.81481065,109910.0,109900.0,0.02849995]
[1749517324555,1.81481065,109910.0,109900.0,0.04341251]
[1749517324556,1.24562303,109910.0,109900.0,0.04341251]
[1749517324761,1.79671065,109910.0,109900.0,0.02636958]
[1749517325019,1.79671065,109910.0,109900.0,0.04341251]
[1749517325258,1.88850851,109910.0,109900.0,0.04554288]
[1749517325476,1.79671065,109910.0,109900.0,0.03702142]
[1749517325699,1.81471065,109910.0,109900.0,0.05193397]
[1749517325914,1.81471065,109910.0,109900.0,0.02636958]
[1749517326126,1.81471065,109910.0,109900.0,0.01997849]
[1749517326344,1.81471065,109910.0,109900.0,0.02849995]
[1749517326559,1.81471065,109910.0,109900.0,0.01997849]
[1749517326773,1.81471065,109910.0,109900.0,0.05193399]
[1749517326989,1.81471065,109910.0,109900.0,0.02849996]
[1749517327207,1.81471065,109910.0,109900.0,0.02636959]
[1749517327449,1.81471065,109910.0,109900.0,0.03489104]
[1749517327665,1.81471065,109910.0,109900.0,0.05193396]
[1749517327879,1.81471065,109910.0,109900.0,0.03489104]
[1749517328104,1.81471065,109910.0,109900.0,0.04554288]
[1749517328319,1.81471065,109910.0,109900.0,0.05193397]
[1749517328542,1.81471065,109910.0,109900.0,0.04554288]
[1749517328754,1.90650851,109910.0,109900.0,0.01997849]
[1749517328970,1.90650851,109910.0,109900.0,0.02849995]
[1749517329203,1.90650851,109910.0,109900.0,0.04341251]
[1749517329417,1.81471065,109910.0,109900.0,0.01997849]
[1749517329637,1.81471065,109910.0,109900.0,0.03702142]
[1749517330075,1.81471065,109910.0,109900.0,0.01997849]
[1749517330285,1.81471065,109910.0,109900.0,0.04554288]
[1749517330716,1.81471065,109910.0,109900.0,0.01997849]
[1749517330930,1.81471065,109910.0,109900.0,0.02849997]
[1749517331145,1.81471065,109910.0,109900.0,0.05193414]
[1749517331421,1.81471065,109910.0,109900.0,0.02850003]
[1749517331631,1.81471065,109910.0,109900.0,0.03489122]
[1749517332026,1.81471065,109910.0,109900.0,0.02850005]
[1749517332165,1.81471065,109910.0,109900.0,0.01997849]
[1749517332382,1.26362303,109910.0,109900.0,0.04554317]
[1749517332599,1.81427065,109910.0,109900.0,0.04554317]
[1749517332799,1.81427065,109910.0,109900.0,0.03489103]
[1749517332999,1.81427065,109910.0,109900.0,0.03489106]
[1749517333210,1.81427065,109910.0,109900.0,0.04557263]
[1749517333408,1.81427065,109910.0,109900.0,0.03704125]
[1749517333615,1.81427065,109910.0,109900.0,0.02850987]
[1749517333818,1.81427065,109910.0,109900.0,0.0349084]
[1749517334102,1.81427065,109910.0,109900.0,0.02850987]
[1749517334341,1.81427065,109910.0,109900.0,0.04344008]
[1749517334543,1.81427065,109910.0,109900.0,0.03490859]
[1749517334763,1.81427065,109910.0,109900.0,0.01997849]
[1749517334980,1.81427065,109910.0,109900.0,0.04344008]
[1749517335231,1.81427065,109910.0,109900.0,0.05197157]
[1749517335460,1.81427065,109910.0,109900.0,0.0263771]
[1749517335645,1.79627065,109910.0,109900.0,0.02850998]
[1749517335874,1.79627065,109910.0,109900.0,0.03490858]
[1749517336082,1.81317065,109910.0,109900.0,0.05197155]
[1749517336293,1.81317065,109910.0,109900.0,0.02850997]
[1749517336510,1.81317065,109910.0,109900.0,0.05197155]
[1749517336723,1.90496851,109910.0,109900.0,0.05197155]
[1749517337373,1.88806851,109910.0,109900.0,0.04343711]
[1749517337602,1.90596851,109910.0,109900.0,0.0349067]
[1749517337879,1.90596851,109910.0,109900.0,0.04556972]
[1749517338102,1.90596851,109910.0,109900.0,0.03703931]
[1749517338318,1.90596851,109910.0,109900.0,0.05196752]
[1749517338749,1.90596851,109910.0,109900.0,0.04343711]
[1749517338968,1.90596851,109910.0,109900.0,0.0434371]
[1749517339207,1.81417065,109910.0,109900.0,0.0434371]
[1749517339423,1.81417065,109910.0,109900.0,0.01997849]
[1749517339639,1.81417065,109910.0,109900.0,0.03490669]
[1749517339851,1.81417065,109910.0,109900.0,0.0455697]
[1749517340069,1.26308303,109910.0,109900.0,0.0519675]
[1749517340334,1.81417065,109910.0,109900.0,0.0519675]
[1749517340586,1.81417065,109910.0,109900.0,0.05196756]
[1749517340796,1.81417065,109910.0,109900.0,0.0519676]
[1749517341025,1.81417065,109910.0,109900.0,0.03490679]
[1749517341249,1.90596851,109910.0,109900.0,0.02637633]
[1749517341474,1.90596851,109910.0,109900.0,0.02637634]
[1749517341922,1.90596851,109910.0,109900.0,0.01997849]
[1749517342137,1.90596851,109910.0,109900.0,0.05196776]
[1749517342353,1.90596851,109910.0,109900.0,0.02850896]
[1749517342578,1.90596851,109910.0,109900.0,0.04343728]
[1749517343243,1.90596851,109910.0,109900.0,0.01997849]
[1749517343428,1.90596851,109910.0,109900.0,0.04343728]
[1749517343635,1.90596851,109910.0,109900.0,0.04343727]
[1749517343846,1.90596851,109910.0,109900.0,0.04556988]
[1749517344051,1.90596851,109910.0,109900.0,0.0349068]
[1749517344262,1.90596851,109910.0,109900.0,0.03703942]
[1749517344488,1.90596851,109910.0,109900.0,0.02850895]
[1749517346034,1.90596851,109910.0,109900.0,0.02637634]
[1749517346249,1.90596851,109910.0,109900.0,0.04343727]
[1749517346441,1.90596851,109910.0,109900.0,0.02850895]
[1749517346687,1.35488089,109910.0,109900.0,0.02850895]